fUSD/lending_fUSD_20250226
["ID","MTS","AMOUNT","RATE_DAILY","PERIOD"]
[354541151,1740562259323,-566.47832685,0.00041917,14]
[354541152,1740562259332,-1255.41,0.00041917,14]
[354541153,1740562259341,-1168.86,0.00041917,14]
[354541154,1740562259350,-4549.63,0.00041917,14]
[354541155,1740562259359,-500.78079184,0.00041917,14]
[354541156,1740562259368,-1310.9,0.00041917,14]
[354541157,1740562259378,-4654.95,0.00041917,14]
[354541158,1740562259387,-3041.57,0.00041917,14]
[354541159,1740562259397,-4769.31,0.00041917,14]
[354541160,1740562259406,-5881.78,0.00041917,14]
[354541161,1740562259415,-1278.62,0.00041917,14]
[354541162,1740562259424,-2252.15,0.00041917,14]
[354541163,1740562259433,-834.67,0.00041917,14]
[354541164,1740562259443,-3385.99,0.00041917,14]
[354541165,1740562259452,-2185.89,0.00041917,14]
[354541166,1740562259462,-6750.55,0.00041917,14]
[354541167,1740562259474,-500.0,0.00041917,14]
[354541168,1740562259483,-2582.38,0.00041917,14]
[354541169,1740562259493,-5678.86,0.00041917,14]
[354541170,1740562259502,-4609.09,0.00041917,14]
[354541171,1740562259513,-5167.24,0.00041917,14]
[354541172,1740562259522,-3628.15,0.00041917,14]
[354541173,1740562259531,-657.33,0.00041917,14]
[354541174,1740562259540,-2158.34,0.00041917,14]
[354541175,1740562259550,-3904.64,0.00041917,14]
[354541176,1740562259560,-500.0,0.00041917,14]
[354541177,1740562259570,-500.0,0.00041917,14]
[354541178,1740562259580,-5379.92,0.00041917,14]
[354541179,1740562259589,-1139.38096802,0.00041917,14]
[354541180,1740562260655,-500.0,0.00041095,14]
[354541181,1740562260666,-500.0,0.00041095,14]
[354541182,1740562260675,-1208.41,0.00041095,14]
[354541183,1740562260685,-500.0,0.00041369,14]
[354541184,1740562260695,-500.0,0.00041369,14]
[354541185,1740562260705,-1064.09844,0.00041369,14]
[354541186,1740562260728,-144.31156,0.00041369,14]
[354541187,1740562260738,-500.0,0.00041643,14]
[354541188,1740562260748,-500.0,0.00041643,14]
[354541189,1740562260757,-500.0,0.00041643,14]
[354541190,1740562260767,-1208.41,0.00041643,14]
[354541191,1740562260777,-196.77903198,0.00041917,14]
[354541192,1740562260786,-500.0,0.00041917,14]
[354541193,1740562260796,-2020.07,0.00041917,14]
[354541194,1740562260806,-500.0,0.00041917,14]
[354541195,1740562260815,-500.0,0.00041917,14]
[354541196,1740562260824,-5836.61405192,0.00041917,14]
[354541197,1740562260836,-1889.68594808,0.00041917,14]
[354541198,1740562260846,-1324.05632445,0.00041917,14]
[354541207,1740563432175,-250.0,0.00021,2]
[354541209,1740563432184,-250.0,0.00021125,2]
[354541210,1740563432195,-150.0,0.0002125,2]
[354541211,1740563432205,-52.6897265,0.00023,2]
[354541212,1740563432338,-247.3102735,0.00023,2]
[354541213,1740563432347,-1373.53466722,0.00023,2]
[354541214,1740563432356,-6124.14338508,0.00023,2]
[354541215,1740563432366,-250.0,0.000231,2]
[354541216,1740563432375,-150.0,0.000231,2]
[354541217,1740563432385,-250.0,0.000231,2]
[354541218,1740563432394,-150.0,0.000231,2]
[354541219,1740563432403,-208.24962684,0.00027815,30]
[354541220,1740563432413,-2429.0,0.000307,3]
[354541221,1740563432423,-965.249,0.00034989,40]
[354541222,1740563432433,-961.09,0.00037868,2]
[354541223,1740563432443,-158.509537,0.0003916,2]
[354541224,1740563432452,-627.78983348,0.00039921,2]
[354541225,1740563432557,-372.21016652,0.00039921,2]
[354541226,1740563432566,-627.78983348,0.0003998,2]
[354541227,1740563432578,-478.32016652,0.0003998,2]
[354541228,1740563432587,-378.9,0.00040083,2]
[354541229,1740563432596,-136.43635698,0.00040132,2]
[354541230,1740563432607,-484.72543268,0.00040132,2]
[354541231,1740563432618,-339.92821034,0.00040132,2]
[354541232,1740563432627,-1373.0,0.000403,7]
[354541233,1740563432637,-378.9,0.00040379,2]
[354541234,1740563432646,-378.9,0.00040674,2]
[354541235,1740563432656,-300.0,0.000407,14]
[354541236,1740563432665,-500.0,0.000407,14]
[354541238,1740563432675,-700.0,0.000408,14]
[354541240,1740563432684,-1000.0,0.000408,14]
[354541242,1740563432693,-222.44,0.00040866,120]
[354541244,1740563432703,-168.62,0.00040879,2]
[354541246,1740563432712,-1000.0,0.000409,14]
[354541248,1740563432722,-1500.0,0.000409,14]
[354541250,1740563432731,-378.9,0.00040969,2]
[354541252,1740563432740,-399.70545438,0.00040995,2]
[354541254,1740563432750,-178.07050393,0.00040995,15]
[354541256,1740563432760,-160.43351904,0.00040995,15]
[354541258,1740563432768,-150.0,0.00040995,4]
[354541260,1740563432778,-557.06,0.00041085,3]
[354541262,1740563432787,-86284.31145035,0.00041085,4]
[354541264,1740563432806,-1577.36276331,0.00041085,4]
[354541267,1740563432817,-1597.55526955,0.00041085,4]
[354541818,1740563438161,-833.69583873,0.00041085,4]
[354541828,1740563438245,-33996.95258189,0.00041085,4]
[354541835,1740563438339,-2772.44439419,0.00041085,4]
[354541836,1740563438353,-414.04008287,0.00041085,4]
[354541837,1740563438420,-526.20531,0.00041085,4]
[354541841,1740563438449,-1589.07529685,0.00041085,4]
[354541843,1740563438462,-1471.09,0.00041085,4]
[354542013,1740563440130,-401.44214624,0.00041085,4]
[354542014,1740563440143,-527.55520127,0.00041085,4]
[354542015,1740563440156,-803.50015462,0.00041085,4]
[354542016,1740563440186,-95196.80513413,0.00041085,4]
[354542017,1740563440197,-220.34405726,0.00041085,7]
[354542018,1740563440208,-669.84080222,0.00041094,10]
[354542019,1740563440219,-300.0,0.00041094,10]
[354542020,1740563440230,-675.92468875,0.00041094,10]
[354542021,1740563440240,-176.84952645,0.00041094,31]
[354542022,1740563440251,-500.0,0.00041094,31]
[354542023,1740563440262,-500.0,0.00041094,31]
[354542024,1740563440273,-500.0,0.00041094,31]
[354542025,1740563440284,-500.0,0.00041094,31]
[354542028,1740563440295,-500.0,0.00041094,31]
[354542030,1740563440305,-500.0,0.00041094,31]
[354542032,1740563440316,-500.0,0.00041094,31]
[354542034,1740563440327,-378.67445871,0.00041094,31]
[354542036,1740563440338,-500.0,0.00041094,31]
[354542038,1740563440349,-500.0,0.00041095,14]
[354542041,1740563440359,-500.0,0.00041095,14]
[354542043,1740563440370,-269.95852094,0.00041095,14]
[354542045,1740563440380,-500.0,0.00041095,14]
[354542047,1740563440391,-500.0,0.00041095,14]
[354542049,1740563440401,-500.0,0.00041095,14]
[354542051,1740563440412,-500.0,0.00041095,14]
[354542053,1740563440423,-500.0,0.00041095,14]
[354542056,1740563440433,-500.0,0.00041095,14]
[354542058,1740563440444,-500.0,0.00041095,14]
[354542060,1740563440455,-502.07216318,0.00041095,14]
[354542062,1740563440466,-500.0,0.00041095,14]
[354542064,1740563440476,-500.0,0.00041095,14]
[354542066,1740563440485,-500.0,0.00041095,14]
[354542068,1740563440494,-500.0,0.00041095,14]
[354542070,1740563440504,-500.0,0.00041095,14]
[354542072,1740563440512,-500.0,0.00041095,14]
[354542074,1740563440522,-500.0,0.00041095,14]
[354542076,1740563440531,-500.0,0.00041095,14]
[354542078,1740563440540,-500.0,0.00041095,14]
[354542080,1740563440550,-500.0,0.00041095,14]
[354542082,1740563440558,-500.0,0.00041095,14]
[354542084,1740563440567,-300.0,0.00041095,14]
[354542086,1740563440577,-500.0,0.00041095,14]
[354542088,1740563440586,-500.0,0.00041095,14]
[354542090,1740563440595,-500.0,0.00041095,14]
[354542092,1740563440604,-500.0,0.00041095,14]
[354542094,1740563440614,-500.0,0.00041095,14]
[354542096,1740563440624,-500.0,0.00041095,14]
[354542098,1740563440633,-500.0,0.00041095,14]
[354542100,1740563440643,-500.0,0.00041095,14]
[354542102,1740563440653,-500.0,0.00041095,14]
[354542157,1740563441153,-500.0,0.00041095,14]
[354542160,1740563441182,-500.0,0.00041095,14]
[354542161,1740563441211,-500.0,0.00041095,14]
[354542164,1740563441233,-500.0,0.00041095,14]
[354542166,1740563441243,-500.0,0.00041095,14]
[354542167,1740563441254,-500.0,0.00041095,14]
[354542168,1740563441264,-911.11,0.00041095,14]
[354542169,1740563441274,-500.0,0.00041095,14]
[354542170,1740563441283,-500.0,0.00041095,14]
[354542171,1740563441292,-500.0,0.00041095,14]
[354542172,1740563441302,-1027.58,0.00041095,14]
[354542173,1740563441312,-500.0,0.00041095,14]
[354542174,1740563441322,-166.03550211,0.00041095,14]
[354542175,1740563441331,-500.0,0.00041095,14]
[354542176,1740563441340,-500.0,0.00041095,14]
[354542177,1740563441350,-500.7553588,0.00041095,14]
[354542178,1740563441359,-838.75,0.00041095,14]
[354542179,1740563441368,-500.0,0.00041095,14]
[354542180,1740563441377,-500.0,0.00041095,14]
[354542181,1740563441387,-500.0,0.00041095,14]
[354542182,1740563441395,-500.0,0.00041095,14]
[354542183,1740563441404,-503.75830615,0.00041095,14]
[354542184,1740563441414,-500.25626932,0.00041095,14]
[354542185,1740563441423,-500.0,0.00041095,14]
[354542186,1740563441432,-690.37,0.00041095,14]
[354542187,1740563441441,-500.0,0.00041095,14]
[354542188,1740563441451,-500.0,0.00041095,14]
[354542189,1740563441460,-500.0,0.00041095,14]
[354542190,1740563441469,-710.33,0.00041095,14]
[354542191,1740563441478,-500.0,0.00041095,14]
[354542192,1740563441487,-500.0,0.00041095,14]
[354542193,1740563441496,-500.0,0.00041095,14]
[354542194,1740563441505,-500.0,0.00041095,14]
[354542195,1740563441514,-500.0,0.00041095,14]
[354542196,1740563441523,-500.0,0.00041095,14]
[354542197,1740563441534,-500.0,0.00041095,14]
[354542198,1740563441543,-512.89747184,0.00041095,14]
[354542199,1740563441552,-500.0,0.00041095,14]
[354542200,1740563441562,-915.95,0.00041095,14]
[354542201,1740563441571,-500.0,0.00041095,14]
[354542202,1740563441580,-500.0,0.00041095,14]
[354542203,1740563441589,-535.03711038,0.00041095,14]
[354542204,1740563441598,-2000.0,0.00041095,120]
[354542205,1740563441608,-500.0,0.00041095,14]
[354542206,1740563441618,-595.32,0.00041095,14]
[354542207,1740563441627,-500.0,0.00041095,14]
[354542208,1740563441637,-500.0,0.00041095,14]
[354542209,1740563441648,-524.36824039,0.00041095,14]
[354542210,1740563441658,-1180.01,0.00041095,14]
[354542211,1740563441668,-501.39954521,0.00041095,14]
[354542212,1740563441681,-503.84165199,0.00041095,14]
[354542213,1740563441690,-500.0,0.00041095,14]
[354542214,1740563441700,-500.0,0.00041095,14]
[354542215,1740563441709,-500.0,0.00041095,14]
[354542216,1740563441719,-500.0,0.00041095,14]
[354542217,1740563441728,-500.0,0.00041095,14]
[354542218,1740563441738,-505.44931086,0.00041095,14]
[354542219,1740563441747,-1540.69,0.00041095,14]
[354542220,1740563441756,-500.0,0.00041095,14]
[354542221,1740563441765,-500.0,0.00041095,14]
[354542222,1740563441774,-500.0,0.00041095,14]
[354542223,1740563441783,-500.0,0.00041095,14]
[354542224,1740563441792,-500.0,0.00041095,14]
[354542225,1740563441801,-500.0,0.00041095,14]
[354542226,1740563441811,-500.0,0.00041095,14]
[354542227,1740563441823,-1722.6,0.00041095,14]
[354542228,1740563441833,-500.0,0.00041095,14]
[354542229,1740563441842,-500.0,0.00041095,14]
[354542230,1740563441854,-500.0,0.00041095,14]
[354542231,1740563441863,-500.0,0.00041095,14]
[354542232,1740563441872,-500.0,0.00041095,14]
[354542233,1740563441881,-500.0,0.00041095,14]
[354542234,1740563441891,-500.0,0.00041095,14]
[354542235,1740563441901,-270.22177745,0.00041095,14]
[354542236,1740563441911,-500.0,0.00041095,14]
[354542237,1740563441920,-500.0,0.00041095,14]
[354542238,1740563441930,-500.0,0.00041095,14]
[354542239,1740563441940,-500.0,0.00041095,14]
[354542240,1740563441950,-500.0,0.00041095,14]
[354542241,1740563441960,-500.0,0.00041095,14]
[354542242,1740563441969,-500.0,0.00041095,14]
[354542243,1740563441978,-983.93,0.00041095,14]
[354542244,1740563441987,-626.23150001,0.00041095,14]
[354542245,1740563441997,-500.0,0.00041095,14]
[354542246,1740563442007,-500.0,0.00041095,14]
[354542247,1740563442017,-805.01,0.00041095,14]
[354542248,1740563442028,-500.0,0.00041095,14]
[354542249,1740563442038,-500.0,0.00041095,14]
[354542250,1740563442047,-500.0,0.00041095,14]
[354542251,1740563442058,-678.67,0.00041095,14]
[354542252,1740563442068,-500.0,0.00041095,14]
[354542253,1740563442077,-767.49,0.00041095,14]
[354542254,1740563442086,-500.0,0.00041095,14]
[354542255,1740563442095,-500.0,0.00041095,14]
[354542256,1740563442104,-500.0,0.00041095,14]
[354542257,1740563442113,-504.19366005,0.00041095,14]
[354542258,1740563442123,-643.49,0.00041095,14]
[354542259,1740563442132,-500.0,0.00041095,14]
[354542260,1740563442141,-500.0,0.00041095,14]
[354542261,1740563442151,-500.0,0.00041095,14]
[354542262,1740563442160,-500.0,0.00041095,14]
[354542263,1740563442171,-500.0,0.00041095,14]
[354542264,1740563442181,-500.0,0.00041095,14]
[354542265,1740563442190,-500.0,0.00041095,14]
[354542266,1740563442199,-500.0,0.00041095,14]
[354542267,1740563442208,-500.0,0.00041095,14]
[354542268,1740563442218,-500.0,0.00041095,14]
[354542269,1740563442227,-500.0,0.00041095,14]
[354542270,1740563442236,-500.0,0.00041095,14]
[354542271,1740563442245,-1139.64,0.00041095,14]
[354542272,1740563442255,-500.0,0.00041095,14]
[354542273,1740563442264,-500.0,0.00041095,14]
[354542274,1740563442274,-500.0,0.00041095,14]
[354542275,1740563442283,-500.0,0.00041095,14]
[354542276,1740563442292,-547.89,0.00041095,14]
[354542277,1740563442301,-524.64,0.00041095,14]
[354542278,1740563442310,-559.6376966,0.00041095,14]
[354542279,1740563442319,-1095.28,0.00041095,14]
[354542280,1740563442328,-500.0,0.00041095,14]
[354542281,1740563442338,-500.0,0.00041095,14]
[354542282,1740563442347,-500.0,0.00041095,14]
[354542283,1740563442357,-873.37,0.00041095,14]
[354542284,1740563442366,-500.0,0.00041095,14]
[354542285,1740563442375,-500.0,0.00041095,14]
[354542286,1740563442384,-871.73,0.00041095,14]
[354542287,1740563442394,-858.6,0.00041095,14]
[354542288,1740563442403,-500.0,0.00041095,14]
[354542289,1740563442413,-238.85068285,0.00041095,14]
[354542290,1740563442422,-500.0,0.00041095,14]
[354542291,1740563442431,-500.0,0.00041095,14]
[354542292,1740563442442,-500.0,0.00041095,14]
[354542293,1740563442451,-894.67,0.00041095,14]
[354542294,1740563442460,-500.0,0.00041095,14]
[354542295,1740563442469,-500.0,0.00041095,14]
[354542296,1740563442478,-504.8159221,0.00041095,14]
[354542297,1740563442487,-500.0,0.00041095,14]
[354542298,1740563442497,-500.0,0.00041095,14]
[354542299,1740563442506,-500.0,0.00041095,14]
[354542300,1740563442515,-898.78,0.00041095,14]
[354542301,1740563442524,-500.0,0.00041095,14]
[354542302,1740563442533,-500.0,0.00041095,14]
[354542303,1740563442543,-500.0,0.00041095,14]
[354542304,1740563442552,-500.0,0.00041095,14]
[354542305,1740563442562,-500.0,0.00041095,14]
[354542306,1740563442570,-500.0,0.00041095,14]
[354542307,1740563442579,-604.42,0.00041095,14]
[354542308,1740563442588,-962.311662,0.00041095,14]
[354542309,1740563442598,-1115.31,0.00041095,14]
[354542310,1740563442607,-500.0,0.00041095,14]
[354542311,1740563442620,-500.0,0.00041095,14]
[354542312,1740563442629,-187.65620412,0.00041095,14]
[354542313,1740563442638,-500.0,0.00041095,14]
[354542314,1740563442647,-500.0,0.00041095,14]
[354542315,1740563442660,-996.82,0.00041095,14]
[354542316,1740563442670,-2362.047592,0.00041095,14]
[354542317,1740563442679,-868.72,0.00041095,14]
[354542318,1740563442688,-500.0,0.00041095,14]
[354542319,1740563442697,-973.97,0.00041095,14]
[354542320,1740563442706,-500.0,0.00041095,14]
[354542321,1740563442715,-500.0,0.00041095,14]
[354542322,1740563442724,-500.0,0.00041095,14]
[354542323,1740563442733,-500.0,0.00041095,14]
[354542324,1740563442742,-500.0,0.00041095,14]
[354542325,1740563442751,-1652.76,0.00041095,14]
[354542326,1740563442760,-162.690731,0.00041095,14]
[354542327,1740563442769,-500.0,0.00041095,14]
[354542328,1740563442777,-1674.45,0.00041095,14]
[354542329,1740563442786,-500.0,0.00041095,14]
[354542330,1740563442796,-500.0,0.00041095,14]
[354542331,1740563442805,-879.97,0.00041095,14]
[354542332,1740563442815,-500.0,0.00041095,14]
[354542333,1740563442824,-500.0,0.00041095,14]
[354542334,1740563442834,-500.0,0.00041095,14]
[354542335,1740563442844,-613.72,0.00041095,14]
[354542336,1740563442856,-523.29,0.00041095,14]
[354542337,1740563442865,-500.0,0.00041095,14]
[354542338,1740563442874,-1378.86,0.00041095,14]
[354542339,1740563442884,-500.0,0.00041095,14]
[354542340,1740563442894,-500.0,0.00041095,14]
[354542341,1740563442903,-500.0,0.00041095,14]
[354542343,1740563442913,-500.0,0.00041095,14]
[354542344,1740563442923,-500.0,0.00041095,14]
[354542345,1740563442932,-561.72,0.00041095,14]
[354542346,1740563442942,-1960.28,0.00041095,14]
[354542347,1740563442951,-500.78,0.00041095,14]
[354542349,1740563442960,-500.78,0.00041095,14]
[354542350,1740563442969,-500.0,0.00041095,14]
[354542352,1740563442979,-500.78,0.00041095,14]
[354542353,1740563442988,-500.78,0.00041095,14]
[354542354,1740563442998,-500.78,0.00041095,14]
[354542355,1740563443007,-505.44,0.00041095,14]
[354542357,1740563443016,-525.3,0.00041095,14]
[354542359,1740563443026,-680.27,0.00041095,14]
[354542360,1740563443035,-500.0,0.00041095,14]
[354542361,1740563443044,-500.0,0.00041095,14]
[354542362,1740563443054,-500.0,0.00041095,14]
[354542363,1740563443064,-500.0,0.00041095,14]
[354542364,1740563443073,-500.0,0.00041095,14]
[354542366,1740563443083,-500.0,0.00041095,14]
[354542367,1740563443092,-500.0,0.00041095,14]
[354542368,1740563443101,-1758.99,0.00041095,14]
[354542369,1740563443110,-500.0,0.00041095,14]
[354542370,1740563443119,-1506.23,0.00041095,14]
[354542372,1740563443128,-994.23,0.00041095,14]
[354542373,1740563443138,-500.0,0.00041095,14]
[354542375,1740563443148,-1172.8,0.00041095,14]
[354542376,1740563443158,-1000.0,0.00041095,14]
[354542378,1740563443171,-500.0,0.00041095,14]
[354542380,1740563443180,-500.0,0.00041095,30]
[354542382,1740563443190,-500.0,0.00041095,14]
[354542384,1740563443200,-500.0,0.00041095,14]
[354542386,1740563443210,-1753.94,0.00041095,14]
[354542387,1740563443224,-1215.42,0.00041095,14]
[354542388,1740563443242,-500.0,0.00041095,14]
[354542389,1740563443252,-1709.0,0.00041095,14]
[354542390,1740563443261,-1510.96,0.00041095,14]
[354542391,1740563443271,-500.0,0.00041095,14]
[354542392,1740563443282,-2885.69,0.00041095,14]
[354542393,1740563443292,-500.0,0.00041095,14]
[354542394,1740563443301,-500.0,0.00041095,14]
[354542395,1740563443312,-788.66,0.00041095,14]
[354542396,1740563443322,-500.0,0.00041095,14]
[354542397,1740563443332,-500.0,0.00041095,14]
[354542398,1740563443342,-438.87736061,0.00041095,14]
[354542399,1740563443373,-63.20355309,0.00041095,14]
[354542400,1740563443382,-500.0,0.00041095,14]
[354542401,1740563443391,-500.0,0.00041095,14]
[354542402,1740563443400,-500.0,0.00041095,14]
[354542403,1740563443411,-500.0,0.00041095,14]
[354542404,1740563443422,-2827.42,0.00041095,14]
[354542405,1740563443431,-500.0,0.00041095,14]
[354542406,1740563443439,-783.29,0.00041095,14]
[354542407,1740563443449,-698.75,0.00041095,14]
[354542408,1740563443458,-1682.36,0.00041095,14]
[354542409,1740563443467,-500.0,0.00041095,14]
[354542410,1740563443477,-500.0,0.00041095,14]
[354542411,1740563443486,-500.0,0.00041095,14]
[354542412,1740563443495,-1658.66,0.00041095,14]
[354542413,1740563443504,-500.0,0.00041095,14]
[354542414,1740563443513,-500.0,0.00041095,14]
[354542415,1740563443522,-500.0,0.00041095,14]
[354542416,1740563443531,-500.0,0.00041095,14]
[354542418,1740563443541,-1284.81,0.00041095,14]
[354542420,1740563443550,-1260.27,0.00041095,14]
[354542422,1740563443559,-500.0,0.00041095,14]
[354542424,1740563443569,-1780.13,0.00041095,14]
[354542426,1740563443578,-500.0,0.00041095,14]
[354542428,1740563443587,-500.0,0.00041095,14]
[354542430,1740563443597,-500.0,0.00041095,14]
[354542432,1740563443607,-500.0,0.00041095,14]
[354542434,1740563443616,-500.0,0.00041095,14]
[354542436,1740563443625,-1464.58,0.00041095,14]
[354542438,1740563443634,-2150.37,0.00041095,14]
[354542441,1740563443644,-2609.25,0.00041095,14]
[354542444,1740563443655,-2227.81,0.00041095,14]
[354542447,1740563443664,-500.0,0.00041095,14]
[354542450,1740563443674,-500.0,0.00041095,14]
[354542453,1740563443683,-500.0,0.00041095,14]
[354542456,1740563443693,-500.0,0.00041095,14]
[354542459,1740563443703,-500.0,0.00041095,14]
[354542462,1740563443712,-500.0,0.00041095,14]
[354542466,1740563443721,-500.0,0.00041095,14]
[354542468,1740563443731,-1429.02,0.00041095,14]
[354542470,1740563443740,-500.0,0.00041095,14]
[354542472,1740563443750,-500.0,0.00041095,14]
[354542473,1740563443760,-3097.37,0.00041095,14]
[354542474,1740563443769,-833.94,0.00041095,14]
[354542475,1740563443779,-501.43835139,0.00041095,14]
[354542476,1740563443788,-500.0,0.00041095,14]
[354542477,1740563443798,-296.97781926,0.00041095,14]
[354542478,1740563443807,-2375.1,0.00041095,14]
[354542479,1740563443816,-524.73458507,0.00041095,14]
[354542480,1740563443825,-500.0,0.00041095,14]
[354542481,1740563443835,-838.11,0.00041095,14]
[354542482,1740563443844,-500.0,0.00041095,14]
[354542483,1740563443857,-2475.3,0.00041095,14]
[354542484,1740563443866,-1929.28,0.00041095,14]
[354542485,1740563443875,-1381.61,0.00041095,14]
[354542487,1740563443885,-1176.75,0.00041095,14]
[354542489,1740563443894,-911.97,0.00041095,14]
[354542491,1740563443904,-500.0,0.00041095,14]
[354542493,1740563443919,-1925.88,0.00041095,14]
[354542495,1740563443938,-500.0,0.00041095,14]
[354542497,1740563443948,-500.0,0.00041095,14]
[354542499,1740563443958,-500.0,0.00041095,14]
[354542501,1740563443968,-500.0,0.00041095,14]
[354542503,1740563443977,-1330.86,0.00041095,14]
[354542505,1740563443986,-500.0,0.00041095,14]
[354542507,1740563443998,-2808.12,0.00041095,14]
[354542509,1740563444010,-1884.64,0.00041095,14]
[354542511,1740563444023,-500.0,0.00041095,14]
[354542514,1740563444033,-500.0,0.00041095,14]
[354542516,1740563444043,-507.34,0.00041095,14]
[354542517,1740563444052,-929.26,0.00041095,14]
[354542520,1740563444061,-500.0,0.00041095,14]
[354542522,1740563444070,-1012.13,0.00041095,14]
[354542523,1740563444079,-500.0,0.00041095,14]
[354542526,1740563444089,-500.0,0.00041095,14]
[354542527,1740563444098,-500.0,0.00041095,14]
[354542528,1740563444107,-500.0,0.00041095,14]
[354542529,1740563444116,-500.0,0.00041095,14]
[354542530,1740563444125,-500.0,0.00041095,14]
[354542531,1740563444134,-741.5,0.00041095,14]
[354542532,1740563444144,-377.84984481,0.00041095,14]
[354542533,1740563444154,-2068.98,0.00041095,14]
[354542534,1740563444165,-1971.94,0.00041095,14]
[354542535,1740563444174,-500.0,0.00041095,14]
[354542536,1740563444183,-1191.91,0.00041095,14]
[354542537,1740563444192,-500.0,0.00041095,14]
[354542538,1740563444201,-2136.88,0.00041095,14]
[354542539,1740563444210,-500.0,0.00041095,14]
[354542540,1740563444219,-500.0,0.00041095,14]
[354542541,1740563444229,-500.0,0.00041095,14]
[354542542,1740563444238,-500.0,0.00041095,14]
[354542543,1740563444247,-500.0,0.00041095,14]
[354542544,1740563444256,-629.22090087,0.00041095,14]
[354542545,1740563444265,-1021.3,0.00041095,14]
[354542546,1740563444274,-500.0,0.00041095,14]
[354542547,1740563444283,-769.82,0.00041095,14]
[354542548,1740563444478,-500.0,0.00041095,14]
[354542549,1740563444494,-1267.04,0.00041095,14]
[354542550,1740563444504,-500.0,0.00041095,14]
[354542551,1740563444516,-1335.93722991,0.00041095,14]
[354542552,1740563444567,-1820.15277009,0.00041095,14]
[354542553,1740563444576,-1573.79,0.00041095,14]
[354542554,1740563444587,-500.0,0.00041095,14]
[354542555,1740563444598,-627.42,0.00041095,14]
[354542556,1740563444609,-500.0,0.00041095,14]
[354542557,1740563444618,-2353.41,0.00041095,14]
[354542558,1740563444627,-1729.24,0.00041095,14]
[354542559,1740563444638,-2403.66,0.00041095,14]
[354542560,1740563444649,-500.0,0.00041095,14]
[354542561,1740563444659,-500.0,0.00041095,14]
[354542562,1740563444668,-500.0,0.00041095,14]
[354542563,1740563444678,-2028.56,0.00041095,14]
[354542564,1740563444687,-1741.28,0.00041095,14]
[354542565,1740563444697,-500.0,0.00041095,14]
[354542566,1740563444706,-829.0,0.00041095,14]
[354542567,1740563444716,-1972.08,0.00041095,14]
[354542568,1740563444726,-1679.78,0.00041095,14]
[354542569,1740563444735,-2489.83,0.00041095,14]
[354542570,1740563444744,-500.0,0.00041095,14]
[354542571,1740563444754,-1140.2,0.00041095,14]
[354542572,1740563444763,-1894.88,0.00041095,14]
[354542573,1740563444772,-235.93128871,0.00041095,14]
[354542574,1740563444793,-289.668,0.00041095,14]
[354542575,1740563444805,-173.08071129,0.00041095,14]
[354542576,1740563444814,-752.31716536,0.00041095,14]
[354542577,1740563444829,-331.07,0.00041095,14]
[354542578,1740563445304,-699.15283464,0.00041095,14]
[354542579,1740563445314,-923.35,0.00041095,14]